Workbook

Sheet Hoja1
A3: Descripcion de la Actividad | E3: Ciudada Coordinadora Municipalidad de El Trébol | F3: Socio 1 Comuna de Teodelina | G3: Socio 2 Universidad Nacional de Rosario
B4: Resumen de Costos | C4: Sub Total US$ | D4: Aporte Mercociudades
D5: Sur Sur
A6: Charla Taller para personal de salud involucrado en la gestación y la primera infancia | C6: 100% | D6: 0% | E6: 10% | F6: 10% | G6: 80%
C7: =SUM(D7:G7) -> 400.00 USD | D7: 0.00 USD | E7: =400*0.1 -> 40.00 USD | F7: =400*0.1 -> 40.00 USD | G7: =400*0.8 -> 320.00 USD
B8: pasajes, alojamiento alimentos
A9: Crear un laboratorio para hacer un seguimiento con las personas gestantes y su entorno desde la gestación hasta los 45 días del bebé | C9: 100% | D9: 60% | E9: 20% | F9: 20% | G9: 0%
B10: viaticos, materiales de difusion, traslados, alojamiento | C10: =SUM(D10:G10) -> 7,000.00 USD | D10: =7000*D9 -> 4,200.00 USD | E10: =7000*E9 -> 1,400.00 USD | F10: =7000*F9 -> 1,400.00 USD | G10: =7000*G9 -> 0.00 USD
A11: Talleres de lactancia en El trébol con personas gestantes y personal de salud | C11: 100% | D11: 50% | E11: 40% | F11: 20% | G11: 10%
B12: material de difusion y diseño, pasajes | C12: =SUM(D12:G12) -> 175.00 USD | D12: =175*0.5 -> 87.50 USD | E12: =175*0.4 -> 70.00 USD | F12: =0 -> 0.00 USD | G12: =175*0.1 -> 17.50 USD
A14: Talleres de nutrición en Teodelina con personas gestantes y primera infancia | C14: 100% | D14: 50% | E14: 0% | F14: 40% | G14: 10%
B15: material de difusion y diseño, pasajes, etc | C15: =SUM(D15:G15) -> 210.00 USD | D15: =210*0.5 -> 105.00 USD | E15: 0.00 USD | F15: =210*0.4 -> 84.00 USD | G15: =210*0.1 -> 21.00 USD
A16: Talleres de psicoprofilaxis del parto en El Trébol y Teodelina para personas gestantes | C16: 100.00% | D16: 50.00% | E16: 20.00% | F16: 20.00% | G16: 10.00%
B17: material de difusion y diseño, pasajes | C17: =SUM(D17:G17) -> 400.00 USD | D17: =400*0.5 -> 200.00 USD | E17: =400*0.2 -> 80.00 USD | F17: =400*0.2 -> 80.00 USD | G17: =400*0.1 -> 40.00 USD
A18: Entrevistas y encuestas: personas gestantes y actores intervinientes en el cuidado | C18: 100% | D18: 50% | E18: 20% | F18: 20% | G18: 10%
B19: material de diseño | C19: =SUM(D19:G19) -> 550.00 USD | D19: 275.00 USD | E19: 110.00 USD | F19: 110.00 USD | G19: 55.00 USD
A20: Documento relatoria del proyecto | C20: 100% | D20: =D21/C21 -> 35% | E20: 0% | F20: 0% | G20: =G21/C21 -> 65%
B21: material de diseño | C21: =SUM(D21:G21) -> 379.00 USD | D21: 132.50 USD | E21: 0.00 USD | F21: 0.00 USD | G21: 246.50 USD
A22: Resultado del laboratorio | C22: 100% | D22: 0% | E22: =E23/C23 -> 21% | F22: =F23/C23 -> 16% | G22: =G23/C23 -> 63%
B23: material de diseño y difusion | C23: =SUM(D23:G23) -> 286.00 USD | D23: =SUM(D22) -> 0.00 USD | E23: =300*0.2 -> 60.00 USD | F23: =(300*0.2)-14 -> 46.00 USD | G23: =300*0.6 -> 180.00 USD
A24: Actividad de cierre: encuentro abierto a la comunidad y presentación de resultados | C24: 100% | D24: 0% | E24: 40% | F24: 40% | G24: 20%
B25: pasajes, material de diseño y difusion | C25: =SUM(D25:G25) -> 600.00 USD | D25: 0.00 USD | E25: =600*0.4 -> 240.00 USD | F25: =600*0.4 -> 240.00 USD | G25: =600*0.2 -> 120.00 USD
